bitfinex/quotes_SOLUSD_20250403
["timestamp","ask_amount","ask_price","bid_price","bid_amount"]
[1743713733122,34.98626098,116.5,116.46,26.14626098]
[1743713734206,43.57036098,116.5,116.46,26.14626098]
[1743713734525,17.4241,116.5,116.46,26.14626098]
[1743713734729,17.4241,116.5,116.42,8.82]
[1743713734730,0.14216157,116.49,116.42,8.82]
[1743713734890,26.28842255,116.47,116.41,6.4652]
[1743713735091,26.14626098,116.48,116.43,26.14626098]
[1743713735494,26.28842255,116.49,116.44,26.14626098]
[1743713735792,8.5851,116.48,116.44,26.14626098]
[1743713736100,34.73136098,116.48,116.44,26.14626098]
[1743713737506,0.14216157,116.47,116.42,26.14626098]
[1743713737706,26.28842255,116.47,116.42,26.14626098]
[1743713737894,8.5866,116.46,116.42,26.14626098]
[1743713739516,8.5866,116.46,116.41,15.0551]
[1743713739696,8.5866,116.46,116.42,26.14626098]
[1743713740914,34.87442255,116.47,116.42,34.73566098]
[1743713741211,8.72656157,116.49,116.45,26.14626098]
[1743713743417,34.87282255,116.49,116.44,34.73386098]
[1743713743622,34.87282255,116.49,116.44,26.14626098]
[1743713744312,86.57282255,116.49,116.44,34.73426098]
[1743713744617,34.87282255,116.49,116.44,34.73426098]
[1743713746028,34.87282255,116.49,116.44,26.14626098]
[1743713746696,34.87282255,116.49,116.44,34.73426098]
[1743713746904,34.87282255,116.49,116.44,8.588]
[1743713747231,34.87282255,116.49,116.44,26.14626098]
[1743713747728,8.72656157,116.49,116.44,34.73426098]
[1743713748026,34.87282255,116.49,116.44,34.73426098]
[1743713749415,8.72656157,116.49,116.45,26.14626098]
[1743713749607,34.87282255,116.49,116.44,34.73426098]
[1743713749807,16.87968326,116.49,116.44,25.32552169]
[1743713750209,25.46418326,116.49,116.45,16.73752169]
[1743713750398,16.87968326,116.49,116.45,16.73752169]
[1743713750600,25.46408326,116.49,116.44,25.32552169]
[1743713751421,8.72656157,116.49,116.44,25.32552169]
[1743713751622,25.46408326,116.49,116.44,25.32552169]
[1743713752518,8.584,116.5,116.45,16.73752169]
[1743713752722,8.584,116.5,116.46,16.73752169]
[1743713752923,25.32152169,116.5,116.45,16.73752169]
[1743713753507,16.73752169,116.49,116.45,16.73752169]
[1743713753706,16.73752169,116.49,116.44,25.32552169]
[1743713754543,25.32242169,116.49,116.44,25.32552169]
[1743713755841,25.32242169,116.49,116.43,10.2207]
[1743713755842,16.73752169,116.48,116.43,10.2207]
[1743713756050,16.73752169,116.47,116.43,8.5884]
[1743713756339,16.73752169,116.48,116.43,25.32592169]
[1743713756508,25.32302169,116.48,116.43,25.32592169]
[1743713757227,16.73752169,116.47,116.42,33.96672169]
[1743713757529,16.73752169,116.46,116.42,16.73752169]
[1743713757728,16.73752169,116.46,116.41,31.79272169]
[1743713758430,16.73752169,116.46,116.42,16.73752169]
[1743713758618,25.32442169,116.46,116.41,31.79272169]
[1743713759831,0.5,116.34,116.33,53.40410718]
[1743713760029,97.78432314,116.32,116.31,78.80138962]
[1743713760327,42.33215848,116.32,116.31,78.80138962]
[1743713760520,42.87314183,116.36,116.31,95.53891131]
[1743713760725,0.14216157,116.36,116.32,16.73752169]
[1743713760905,26.90764992,116.34,116.33,16.73752169]
[1743713761833,26.90764992,116.34,116.33,52.1938529]
[1743713762541,15.03110269,116.35,116.33,52.1938529]
[1743713762827,15.03110269,116.35,116.34,26.1938529]
[1743713763135,5.14251948,116.35,116.34,26.1938529]
[1743713763526,8.5921,116.39,116.34,26.1938529]
[1743713763712,8.5911,116.4,116.36,26.1938529]
[1743713764121,8.5911,116.4,116.35,26.1938529]
[1743713764433,8.5911,116.4,116.34,9.42]
[1743713764434,8.5911,116.4,116.36,26.1938529]
[1743713764633,5.58763653,116.39,116.36,26.1938529]
[1743713765411,5.58763653,116.39,116.35,26.1938529]
[1743713765818,5.58763653,116.39,116.36,26.1938529]
[1743713766028,14.17943653,116.39,116.36,26.1938529]
[1743713766520,5.58763653,116.38,116.36,26.1938529]
[1743713766720,5.58763653,116.38,116.37,26.1938529]
[1743713767327,5.58763653,116.38,116.34,9.42]
[1743713767524,5.58763653,116.38,116.35,26.1938529]
[1743713767923,5.58763653,116.38,116.34,35.6138529]
[1743713768124,8.5932,116.37,116.34,35.6138529]
[1743713769727,2.14909097,116.36,116.34,35.6138529]
[1743713769924,2.14909097,116.36,116.33,32.4359]
[1743713770237,8.5947,116.35,116.33,32.4359]
[1743713771221,2.14909097,116.34,116.33,58.6297529]
[1743713772631,8.5942,116.36,116.33,58.6297529]
[1743713773233,8.5942,116.36,116.33,32.4359]
[1743713774041,2.14967162,116.35,116.33,58.6297529]
[1743713774740,10.74457162,116.35,116.33,58.6297529]
[1743713774923,10.74447162,116.35,116.33,58.6297529]
[1743713775118,10.74447162,116.35,116.33,32.4359]
[1743713775646,10.74447162,116.35,116.33,58.6297529]
[1743713776142,2.14967162,116.35,116.33,58.6297529]
[1743713776343,8.5944,116.36,116.33,58.6297529]
[1743713777362,8.5932,116.37,116.33,58.6297529]
[1743713778747,56.2702529,116.37,116.33,52.1938529]
[1743713778944,26.33601447,116.36,116.29,6.0571]
[1743713779250,26.1938529,116.35,116.31,26.1938529]
[1743713779436,8.5954,116.34,116.31,26.1938529]
[1743713781346,2.14982537,116.33,116.31,26.1938529]
[1743713781546,10.74662537,116.33,116.31,26.1938529]
[1743713781744,2.14982537,116.33,116.32,26.1938529]
[1743713782745,2.14982537,116.35,116.32,26.1938529]
[1743713782941,2.14982537,116.35,116.33,26.1938529]
[1743713783548,8.5944,116.36,116.33,26.1938529]
[1743713783744,8.5932,116.37,116.33,16.76970065]
[1743713785455,2.14974641,116.36,116.33,16.76970065]
[1743713785652,8.5947,116.35,116.32,26.0]
[1743713785836,8.5947,116.35,116.32,42.76970065]
[1743713786034,10.74404641,116.36,116.33,16.76970065]
[1743713786853,2.14974641,116.35,116.33,16.76970065]
[1743713787238,2.14974641,116.35,116.32,26.0]
[1743713787551,10.74454641,116.35,116.33,16.76970065]
[1743713788354,8.5948,116.35,116.33,16.76970065]
[1743713789150,30.0774,116.37,116.33,16.76970065]
[1743713789953,5.58938048,116.36,116.33,16.76970065]
[1743713791254,14.18398048,116.36,116.33,16.76970065]
[1743713791453,14.18398048,116.36,116.29,55.38464886]
[1743713791454,16.91186222,116.35,116.29,6.0571]
[1743713791955,16.91186222,116.35,116.3,16.76970065]
[1743713792655,8.5954,116.34,116.3,16.76970065]
[1743713793345,46.85380065,116.34,116.29,22.82680065]
[1743713793553,5.59059176,116.33,116.29,22.82680065]
[1743713793852,5.59059176,116.33,116.29,6.0571]
[1743713794051,5.59059176,116.33,116.29,22.82680065]
[1743713794250,22.36029241,116.33,116.26,321.86]
[1743713794439,16.76970065,116.31,116.26,337.3878]
[1743713794639,16.76970065,116.31,116.27,16.76970065]
[1743713794842,8.5977,116.31,116.27,16.76970065]
[1743713795038,8.5977,116.31,116.28,16.76970065]
[1743713795641,2.1502276,116.3,116.28,16.76970065]
[1743713797068,2.1502276,116.29,116.28,16.76970065]
[1743713798247,2.1502276,116.29,116.26,24.1292]
[1743713798459,2.1502276,116.29,116.28,16.76970065]
[1743713799543,2.1502276,116.29,116.27,16.76970065]
[1743713799878,2.1502276,116.29,116.28,16.76970065]
[1743713800360,4.30151262,116.31,116.3,26.0]
[1743713800577,4.30151262,116.31,116.3,42.76970065]
[1743713801637,4.30151262,116.31,116.3,16.76970065]
[1743713802243,4.30151262,116.31,116.29,42.76970065]
[1743713802645,8.5977,116.31,116.28,16.76970065]
[1743713802859,8.5977,116.31,116.27,25.70970065]
[1743713803039,8.5977,116.31,116.28,16.76970065]
[1743713803245,8.5977,116.31,116.27,8.94]
[1743713803445,8.5977,116.31,116.27,25.70970065]
[1743713804557,8.5977,116.31,116.27,8.94]
[1743713804758,5.59191381,116.3,116.27,25.70970065]
[1743713805462,14.19071381,116.3,116.27,25.70970065]
[1743713805662,14.19071381,116.3,116.27,35.17035942]
[1743713805964,2.15073608,116.29,116.27,35.17035942]
[1743713807154,2.15073608,116.28,116.27,35.17035942]
[1743713809060,2.15073608,116.28,116.27,8.94]
[1743713809274,10.75063608,116.28,116.26,32.73815942]
[1743713809645,10.75063608,116.28,116.26,26.23035942]
[1743713809873,2.15073608,116.28,116.26,26.23035942]
[1743713810058,2.15073608,116.28,116.27,26.23035942]
[1743713810446,8.5993,116.29,116.27,26.23035942]
[1743713810657,8.5993,116.29,116.25,330.5618]
[1743713810857,8.5993,116.29,116.26,26.23035942]
[1743713811158,8.74086157,116.3,116.27,26.23035942]
[1743713811955,2.15098618,116.28,116.27,26.23035942]
[1743713812267,2.15098618,116.28,116.26,26.23035942]
[1743713813870,8.5995,116.29,116.26,26.23035942]
[1743713815165,0.14216157,116.28,116.26,26.23035942]
[1743713815570,0.14216157,116.28,116.24,19.0162]
[1743713815763,0.14216157,116.28,116.26,26.23035942]
[1743713816665,0.14216157,116.28,116.24,19.0162]
[1743713816870,0.14216157,116.28,116.26,26.23035942]
[1743713817369,2.15097313,116.27,116.26,26.23035942]
[1743713820943,2.15097313,116.27,116.26,34.83175942]
[1743713822170,3.58352611,116.29,116.26,34.83175942]
[1743713822381,3.58352611,116.29,116.27,26.23035942]
[1743713823548,2.15079138,116.28,116.27,26.23035942]
[1743713824648,2.15079138,116.28,116.26,8.6014]
[1743713824850,2.15079138,116.28,116.27,26.23035942]
[1743713826259,1.65079138,116.28,116.27,26.23035942]
[1743713826464,1.65079138,116.28,116.27,34.83095942]
[1743713826673,1.65079138,116.28,116.27,53.48060828]
[1743713826882,1.65079138,116.28,116.27,26.23035942]
[1743713827173,1.65079138,116.28,116.27,34.83095942]
[1743713827550,1.65079138,116.28,116.27,26.23035942]
[1743713827749,1.65079138,116.28,116.27,16.78232443]
[1743713828667,1.65079138,116.28,116.26,8.6013]
[1743713828876,1.65079138,116.28,116.27,42.78232443]
[1743713829171,0.14216157,116.3,116.27,42.78232443]
[1743713829470,8.5991,116.29,116.28,16.78232443]
[1743713830272,8.74096157,116.3,116.28,16.78232443]
[1743713830471,8.74096157,116.3,116.27,26.0]
[1743713830774,8.74096157,116.3,116.28,16.78232443]
[1743713831271,8.74096157,116.3,116.24,10.3136]
[1743713831570,8.74096157,116.3,116.27,16.78232443]
[1743713832767,0.28432314,116.29,116.23,6.187]
[1743713832968,3.72583117,116.29,116.25,16.78232443]
[1743713833170,0.28432314,116.27,116.21,332.2086]
[1743713833358,17.06664757,116.27,116.22,16.78232443]
[1743713833865,0.14216157,116.26,116.21,322.06]
[1743713834065,0.14216157,116.25,116.21,322.06]
[1743713834267,0.14216157,116.25,116.22,16.78232443]
[1743713834857,3.44150803,116.26,116.24,16.78232443]
[1743713835053,3.44150803,116.26,116.25,16.78232443]
[1743713836270,8.6,116.28,116.25,16.78232443]
[1743713836657,8.6,116.28,116.23,8.64]
[1743713836858,8.6,116.28,116.25,16.78232443]
[1743713837255,0.14216157,116.25,116.2,6.0442]
[1743713837458,17.20880914,116.25,116.2,22.82652443]
[1743713838173,17.20880914,116.25,116.21,16.78232443]
[1743713838372,17.20880914,116.25,116.19,8.6062]
[1743713838578,17.20880914,116.25,116.2,16.78232443]
[1743713838774,0.14216157,116.23,116.2,16.78232443]
[1743713839352,0.14216157,116.23,116.2,25.38792443]
[1743713839551,0.14216157,116.23,116.21,16.78232443]
[1743713839758,0.14216157,116.23,116.21,26.25922538]
[1743713840258,0.14216157,116.23,116.2,8.6056]
[1743713840460,0.14216157,116.23,116.21,26.25922538]
[1743713841353,2.15198011,116.22,116.21,26.25922538]
[1743713841766,2.15198011,116.22,116.2,26.25922538]
[1743713841964,2.15198011,116.22,116.18,16.2797]
[1743713841965,2.15198011,116.22,116.18,24.8465]
[1743713842176,2.15198011,116.22,116.19,26.25922538]
[1743713842370,2.15198011,116.22,116.18,24.8465]
[1743713842565,2.15198011,116.21,116.19,26.25922538]
[1743713843275,10.75718011,116.21,116.19,26.25922538]
[1743713843674,0.14216157,116.2,116.19,26.25922538]
[1743713843869,0.14216157,116.2,116.18,32.30942538]
[1743713844061,0.14216157,116.2,116.18,26.25922538]
[1743713844257,0.14216157,116.2,116.17,26.25922538]
[1743713844976,8.6044,116.22,116.19,26.25922538]
[1743713845163,0.14216157,116.21,116.19,26.25922538]
[1743713846680,7.74656157,116.22,116.19,26.25922538]
[1743713846861,2.15246944,116.2,116.19,26.25922538]
[1743713848086,2.15246944,116.2,116.18,26.25922538]
[1743713848786,2.15246944,116.2,116.19,26.25922538]
[1743713849585,8.6051,116.21,116.19,26.25922538]
[1743713850381,8.6051,116.21,116.18,26.25922538]
[1743713850963,0.14216157,116.21,116.18,26.25922538]
[1743713852082,8.74796157,116.21,116.18,26.25922538]
[1743713852588,2.15261086,116.2,116.18,26.25922538]
[1743713853687,2.15261086,116.2,116.19,26.25922538]
[1743713854281,8.6034,116.24,116.19,26.25922538]
[1743713854469,8.6034,116.24,116.21,26.25922538]
[1743713854663,8.6034,116.24,116.2,26.25922538]
[1743713854868,8.6034,116.24,116.21,26.25922538]
[1743713855680,2.1521281,116.23,116.21,26.25922538]
[1743713856893,8.6034,116.24,116.21,26.25922538]
[1743713858489,9.02898471,116.25,116.21,34.86422538]
[1743713858675,9.02898471,116.25,116.21,26.25922538]
[1743713859489,2.15200526,116.24,116.21,26.25922538]
[1743713859694,2.15200526,116.24,116.21,16.80497659]
[1743713861391,0.14216157,116.23,116.21,16.80497659]
[1743713861571,0.14216157,116.23,116.2,16.80497659]
[1743713861992,9.03018471,116.23,116.19,16.80497659]
[1743713863080,9.03018471,116.23,116.2,16.80497659]
[1743713863695,2.15227083,116.22,116.2,16.80497659]
[1743713864798,2.15227083,116.22,116.21,16.80497659]
[1743713865518,8.6031,116.24,116.21,16.80497659]
[1743713866093,8.74426157,116.25,116.21,16.80497659]
[1743713866903,8.74426157,116.25,116.2,14.6915]
[1743713867198,8.74426157,116.25,116.21,16.80497659]
[1743713867199,2.15194722,116.24,116.21,16.80497659]
[1743713867403,2.15194722,116.24,116.22,16.80497659]
[1743713868175,10.75484722,116.24,116.22,16.80497659]
[1743713868900,2.15194722,116.23,116.22,16.80497659]
[1743713875611,2.15194722,116.23,116.2,14.6912]
[1743713875795,2.15194722,116.23,116.22,16.80497659]
[1743713877310,5.59505935,116.23,116.22,16.80497659]
[1743713881493,5.59505935,116.23,116.22,25.40927659]
[1743713882914,5.59505935,116.23,116.22,16.80497659]
[1743713883112,5.73722092,116.23,116.22,16.80497659]
[1743713885419,5.59505935,116.23,116.22,25.40927659]
[1743713885917,2.15194722,116.23,116.22,25.40927659]
[1743713886418,2.15194722,116.23,116.22,16.80497659]
[1743713890022,2.15194722,116.23,116.22,25.40927659]
[1743713896725,2.15194722,116.23,116.22,16.80497659]
[1743713897727,2.15194722,116.23,116.22,25.40927659]
[1743713898018,2.15194722,116.23,116.22,16.80497659]
[1743713901226,2.15194722,116.23,116.22,25.40927659]
[1743713901528,2.15194722,116.23,116.22,16.80497659]
[1743713910333,5.59479169,116.23,116.22,16.80497659]
[1743713913754,0.14216157,116.22,116.18,8.18]
[1743713913956,0.14216157,116.22,116.2,16.80497659]
[1743713915025,8.74686157,116.22,116.2,16.80497659]
[1743713915212,5.73695326,116.21,116.2,16.80497659]
[1743713917738,5.59479169,116.21,116.2,16.80497659]
[1743713918922,5.59479169,116.21,116.2,25.41077659]
[1743713920126,5.59479169,116.21,116.2,16.80497659]
[1743713920329,2.15194722,116.21,116.2,16.80497659]
[1743713930745,2.15194722,116.21,116.2,25.41077659]
[1743713930950,13.4686303,116.25,116.22,1.6566]
[1743713931153,13.4686303,116.25,116.24,16.80497659]
[1743713932137,13.4686303,116.25,116.24,25.40777659]
[1743713933430,0.14216157,116.27,116.24,25.40777659]
[1743713933631,0.14216157,116.27,116.26,16.80497659]
[1743713935539,0.14216157,116.28,116.26,16.80497659]
[1743713935744,8.74206157,116.28,116.27,16.80497659]
[1743713936256,8.73986157,116.31,116.27,16.80497659]
[1743713936547,8.73986157,116.31,116.3,16.80497659]
[1743713936754,8.73986157,116.31,116.29,16.80497659]
[1743713939968,8.73986157,116.31,116.28,16.80497659]
[1743713940958,8.73986157,116.31,116.29,16.80497659]
[1743713941751,8.73986157,116.31,116.28,16.80497659]
[1743713944063,2.15099199,116.3,116.29,16.80497659]
[1743713945762,2.29315356,116.3,116.29,16.80497659]
[1743713947156,0.14216157,116.3,116.29,16.80497659]
[1743713947361,9.02488471,116.3,116.28,16.80497659]
[1743713947559,9.02488471,116.3,116.27,16.80497659]
[1743713948069,9.02488471,116.3,116.28,16.80497659]
[1743713948268,9.02488471,116.3,116.24,13.9922]
[1743713948447,9.02488471,116.3,116.28,16.80497659]
[1743713949265,0.42648471,116.29,116.24,6.1722]
[1743713949560,39.07613357,116.29,116.25,16.80497659]
[1743713949761,55.88111016,116.29,116.22,85.30040636]
[1743713949940,55.88111016,116.29,116.24,16.80497659]
[1743713950138,0.42648471,116.27,116.24,16.80497659]
[1743713950343,0.42648471,116.26,116.23,16.80497659]
[1743713950755,0.14216157,116.24,116.23,16.80497659]
[1743713951152,0.14216157,116.24,116.22,16.80497659]
[1743713952168,0.14216157,116.23,116.19,332.2984]
[1743713952481,0.14216157,116.23,116.21,16.80497659]
[1743713953046,0.14216157,116.23,116.19,10.1784]
[1743713953254,0.14216157,116.22,116.19,10.1784]
[1743713953456,0.14216157,116.22,116.21,16.80497659]
[1743713955266,0.42648471,116.21,116.18,16.80497659]
[1743713956576,55.88111016,116.21,116.15,6.6629]
[1743713956751,0.28432314,116.18,116.13,1.6421]
[1743713957076,0.28432314,116.18,116.15,16.80497659]
[1743713957253,0.42648471,116.16,116.13,16.80497659]
[1743713958873,9.03588471,116.16,116.13,16.80497659]
[1743713961765,9.03588471,116.16,116.12,23.15127659]
[1743713963075,9.03588471,116.16,116.13,16.80497659]
[1743713963274,9.03588471,116.16,116.12,6.3463]
[1743713963459,9.03588471,116.16,116.13,16.80497659]
[1743713965976,0.14216157,116.17,116.15,16.80497659]
[1743713966277,0.14216157,116.17,116.16,16.80497659]
[1743713968287,0.14216157,116.2,116.16,16.80497659]
[1743713968464,27.39761043,116.2,116.16,16.80497659]
[1743713968661,0.28432314,116.19,116.16,16.80497659]
[1743713970186,8.74946157,116.18,116.15,16.80497659]
[1743713971386,0.14216157,116.18,116.15,16.80497659]
[1743713971572,0.14216157,116.18,116.17,16.80497659]
[1743713971965,21.5088,116.21,116.17,16.80497659]
[1743713972165,0.14216157,116.2,116.17,16.80497659]
[1743713972504,0.42648471,116.2,116.17,16.80497659]
[1743713972664,0.14216157,116.2,116.17,16.80497659]
[1743713972864,0.28432314,116.2,116.17,16.80497659]
[1743713973359,0.42648471,116.2,116.17,16.80497659]
[1743713974186,9.03238471,116.2,116.17,16.80497659]
[1743713979670,0.14216157,116.19,116.17,16.80497659]
[1743713980196,0.14216157,116.19,116.18,16.80497659]
[1743713980689,0.42648471,116.2,116.18,16.80497659]
[1743713981486,9.03238471,116.2,116.18,16.80497659]
[1743713982880,8.74686157,116.22,116.19,16.80497659]
[1743713983088,8.74686157,116.22,116.2,16.80497659]
[1743713983880,0.28432314,116.22,116.2,16.80497659]
[1743713984076,0.28432314,116.22,116.21,16.80497659]
[1743713984077,0.42648471,116.22,116.21,16.80497659]
[1743713985378,9.03078471,116.22,116.2,16.80497659]
[1743713986693,0.42648471,116.22,116.2,16.80497659]
[1743713987696,0.14216157,116.25,116.21,16.80497659]
[1743713987892,0.14216157,116.25,116.23,16.80497659]
[1743713988597,0.14216157,116.26,116.24,16.80497659]
[1743713989097,0.14216157,116.26,116.25,16.80497659]
[1743713990178,0.28432314,116.27,116.25,16.80497659]
[1743713990477,8.88492314,116.27,116.25,16.80497659]
[1743713990671,20.0,116.31,116.26,16.80497659]
[1743713990894,0.14216157,116.3,116.28,16.80497659]
[1743713991087,8.74096157,116.3,116.26,16.80497659]
[1743713991286,0.42648471,116.28,116.25,16.80497659]
[1743713991892,0.42648471,116.28,116.24,16.80497659]
[1743713992278,8.6006,116.27,116.24,16.80497659]
[1743713993107,8.6006,116.27,116.25,16.80497659]
[1743713993296,9.02678471,116.28,116.25,16.80497659]
[1743713994100,9.02678471,116.28,116.23,16.3235]
[1743713994300,9.02678471,116.28,116.25,16.80497659]
[1743713999498,9.02678471,116.28,116.24,16.80497659]
[1743714003206,9.02678471,116.28,116.25,16.80497659]
[1743714003403,0.42648471,116.26,116.23,16.80497659]
[1743714004307,9.02818471,116.26,116.24,16.80497659]
[1743714004490,0.14216157,116.28,116.25,16.80497659]
[1743714004697,0.14216157,116.28,116.26,16.80497659]
[1743714004892,0.14216157,116.28,116.27,16.80497659]
[1743714006510,8.5999,116.28,116.26,16.80497659]
[1743714006812,0.14216157,116.27,116.26,16.80497659]
[1743714007200,107.59111016,116.27,116.21,7.9468]
[1743714007401,0.28432314,116.22,116.18,24.70607659]
[1743714007709,0.14216157,116.21,116.19,16.80497659]
[1743714008088,0.14216157,116.21,116.18,24.70607659]
[1743714008293,0.14216157,116.21,116.19,16.80497659]
[1743714008493,8.74756157,116.21,116.19,16.80497659]
[1743714009293,0.28432314,116.2,116.18,24.70607659]
[1743714009493,0.28432314,116.2,116.17,16.80497659]
[1743714010815,8.89072314,116.2,116.17,16.80497659]
[1743714012097,0.28432314,116.2,116.17,16.80497659]
[1743714012412,20.14216157,116.21,116.19,16.80497659]
[1743714012910,0.28432314,116.22,116.19,16.80497659]
[1743714013117,0.14216157,116.22,116.2,16.80497659]
[1743714013315,0.42648471,116.22,116.2,16.80497659]
[1743714013507,9.03088471,116.22,116.2,16.80497659]
[1743714013711,9.03088471,116.22,116.19,16.80497659]
[1743714015996,0.42648471,116.2,116.17,16.80497659]
[1743714017315,9.03248471,116.2,116.17,16.80497659]
[1743714017817,0.42648471,116.2,116.18,16.80497659]
[1743714018610,9.03238471,116.2,116.17,16.80497659]
[1743714018814,9.03238471,116.2,116.16,16.80497659]
[1743714019210,0.42648471,116.18,116.15,6.258]
[1743714019403,0.42648471,116.18,116.15,23.06297659]
[1743714021017,9.03388471,116.18,116.15,23.06297659]
[1743714021396,25.8388613,116.18,116.13,6.3009]
[1743714021596,25.8388613,116.18,116.14,16.80497659]
[1743714021900,9.03388471,116.18,116.14,16.80497659]
[1743714022314,9.03388471,116.18,116.15,16.80497659]
[1743714023093,0.42648471,116.18,116.16,16.80497659]
[1743714023298,0.42648471,116.18,116.15,16.80497659]
[1743714023299,9.03408471,116.18,116.15,16.80497659]
[1743714024220,0.28432314,116.18,116.16,16.80497659]
[1743714024418,0.42648471,116.18,116.16,16.80497659]
[1743714025222,9.03388471,116.18,116.16,16.80497659]
[1743714029422,0.14216157,116.18,116.17,16.80497659]
[1743714031628,20.0,116.22,116.17,25.41277659]
[1743714031820,0.14216157,116.21,116.2,16.80497659]
[1743714032121,0.42648471,116.21,116.19,16.80497659]
[1743714032326,0.42648471,116.21,116.18,16.80497659]
[1743714032536,0.42648471,116.21,116.16,10.2435]
[1743714032537,0.14216157,116.21,116.19,16.80497659]
[1743714033413,0.14216157,116.21,116.2,16.80497659]
[1743714034611,0.14216157,116.21,116.19,16.80497659]
[1743714035110,0.42648471,116.19,116.16,1.6352]
[1743714035317,0.42648471,116.19,116.17,16.80497659]
[1743714035835,0.42648471,116.21,116.18,16.80497659]
[1743714036049,0.42648471,116.21,116.19,16.80497659]
[1743714036710,9.03188471,116.21,116.19,16.80497659]
[1743714037244,9.03188471,116.21,116.18,16.80497659]
[1743714041915,9.03188471,116.21,116.16,10.2436]
[1743714042114,9.03188471,116.21,116.18,16.80497659]
[1743714042820,9.03188471,116.21,116.14,8.6102]
[1743714042821,0.42648471,116.19,116.14,8.6102]
[1743714043144,8.6073,116.18,116.13,7.8659]
[1743714043315,30.1256,116.18,116.14,16.80497659]
[1743714043719,30.1256,116.18,116.15,16.80497659]
[1743714046930,0.14216157,116.17,116.15,16.80497659]
[1743714047333,8.75056157,116.17,116.15,16.80497659]
[1743714048324,8.75056157,116.17,116.13,7.8659]
[1743714048523,30.27066157,116.17,116.13,7.8659]
[1743714048748,30.27066157,116.17,116.13,24.67087659]
[1743714049419,0.28432314,116.16,116.1,15.1014]
[1743714049618,0.28432314,116.16,116.12,16.80497659]
[1743714050226,0.28432314,116.16,116.1,15.1014]
[1743714050227,2.58010006,116.16,116.1,15.1014]
[1743714050441,2.58010006,116.16,116.12,16.80497659]
[1743714050749,0.14216157,116.14,116.12,16.80497659]
[1743714052117,0.14216157,116.14,116.1,15.1015]
[1743714052321,0.14216157,116.14,116.12,16.80497659]
[1743714052935,0.14216157,116.13,116.12,16.80497659]
[1743714053950,0.14216157,116.13,116.1,15.1015]
[1743714054123,0.14216157,116.13,116.12,16.80497659]
[1743714054647,8.75196157,116.15,116.12,16.80497659]
[1743714056247,0.14216157,116.13,116.12,16.80497659]
[1743714057626,0.14216157,116.13,116.1,15.1013]
[1743714057821,8.6104,116.14,116.1,15.1013]
[1743714058026,0.14216157,116.13,116.12,16.80497659]
[1743714059825,0.14216157,116.18,116.12,25.41667659]
[1743714060133,0.14216157,116.18,116.16,16.80497659]
[1743714060528,0.14216157,116.17,116.15,16.80497659]
[1743714060930,0.14216157,116.17,116.16,16.80497659]
[1743714061256,9.03338471,116.19,116.16,16.80497659]
[1743714061549,0.14216157,116.19,116.18,16.80497659]
[1743714061753,13.469787,116.21,116.18,16.80497659]
[1743714061931,13.61194857,116.21,116.2,16.80497659]
[1743714063129,15.76449423,116.21,116.2,16.80497659]
[1743714063332,2.29470723,116.21,116.2,16.80497659]
[1743714064245,0.14216157,116.21,116.19,16.80497659]
[1743714064452,8.74736157,116.21,116.19,16.80497659]
[1743714064635,0.14216157,116.21,116.19,16.80497659]
[1743714066455,0.14216157,116.2,116.18,16.80497659]
[1743714067459,0.14216157,116.2,116.15,16.5599]
[1743714067636,0.42648471,116.2,116.16,16.80497659]
[1743714068564,8.6065,116.19,116.16,16.80497659]
[1743714068736,0.42648471,116.18,116.15,16.80497659]
[1743714069862,22.35951014,116.21,116.17,26.28281142]
[1743714070155,13.469787,116.21,116.19,26.28281142]
[1743714070456,13.61194857,116.21,116.2,26.28281142]
[1743714071145,0.14216157,116.21,116.2,26.28281142]
[1743714072055,8.74726157,116.21,116.19,26.28281142]
[1743714072259,33.75411014,116.24,116.2,26.28281142]
[1743714072441,0.14216157,116.23,116.18,18.64964886]
[1743714072635,22.072287,116.25,116.22,26.28281142]
[1743714072841,22.072287,116.25,116.23,26.28281142]
[1743714072842,0.14216157,116.24,116.23,26.28281142]
[1743714073538,0.14216157,116.24,116.22,26.28281142]
[1743714073855,0.42648471,116.24,116.21,26.28281142]
[1743714074062,26.70929613,116.24,116.2,26.28281142]
[1743714074561,2.2943892,116.23,116.2,26.28281142]
[1743714074740,10.8986892,116.23,116.2,26.28281142]
[1743714076061,8.74646157,116.23,116.2,26.28281142]
[1743714077262,0.14216157,116.2,116.19,26.28281142]
[1743714077462,0.14216157,116.2,116.17,7.9552]
[1743714077758,0.42648471,116.2,116.17,26.28281142]
[1743714078649,8.6062,116.2,116.17,26.28281142]
[1743714078851,8.88862314,116.22,116.19,26.28281142]
[1743714079052,0.14216157,116.21,116.2,26.28281142]
[1743714079359,2.29481827,116.21,116.2,26.28281142]
[1743714080963,0.14216157,116.21,116.2,26.28281142]
[1743714081678,0.14216157,116.21,116.19,26.28281142]
[1743714081958,0.14216157,116.2,116.19,26.28281142]
[1743714082662,0.14216157,116.23,116.19,26.28281142]
[1743714082851,0.14216157,116.24,116.21,26.28281142]